Cogmind - Beta 16 @@@ ROGUE MODE // 2026.01.03 @ 05:40:38 Player: C4PT41N Result: Destroyed by G-47 Trooper with Particle Gun Performance ------------- Evolutions (2) 1000 Regions Visited (6) 1200 Robots Destroyed (43) 215 Value Destroyed (1170) 1170 Prototype IDs (1) 20 Alien Tech Used (0) 0 Bonus (300) 300 TOTAL SCORE: 3905 Bonus ------- Aligned with FarCom 300 Cogmind --------- Core Integrity 0/550 Matter 300/300 Energy 71/265 System Corruption 20% Temperature Cool (27) Movement Rolling (85) Location -8/Storage Parts ------- > --- POWER (1) -------- Improved Ion Engine > --- PROPULSION (4) --- Wheel Wheel Wheel Compact Wheel > --- UTILITY (4) ------ Heat Sink Advanced Targeting Computer Particle Charger Hacking Suite > --- WEAPON (2) ------- Beam Rifle Heavy Laser > --- INVENTORY (5) ---- Improved Heat Sink Cooling System Particle Gun Assault Rifle Improved Datajack Peak State ------------ > --- POWER ------------ Light Nuclear Core > --- PROPULSION ------- Wheel Wheel Wheel Compact Wheel > --- UTILITY ---------- Advanced Targeting Computer Particle Charger Improved Shield Generator Hacking Suite > --- WEAPON ----------- Pulse Rifle Heavy Laser > --- INVENTORY -------- Improved Heat Sink Cooling System Particle Gun Assault Rifle Improved Datajack [Rating: 28] Favorites ----------- Power Ion Engine Engine Ion Engine Power Core Light Nuclear Core Propulsion Wheel Treads Light Treads Leg Aluminum Leg Wheel Wheel Utility Medium Storage Unit Device Improved Heat Sink Storage Medium Storage Unit Processor Modified TNC Hackware Hacking Suite Protection Light Armor Plating Weapon Light Assault Rifle Energy Gun Particle Gun Energy Cannon Improved EM Pulse Cannon Ballistic Gun Light Assault Rifle Special Weapon Mining Laser Special Melee Weapon Improved Datajack Build | -11 -10 -10 -10 -9 -8 -8 ------- Run | Yrd Mat Min Exi Min Mat Sto Slots Evolved 4 | . . . . . 4 . Power . | . . . . . . . Propulsion 2 | . . . . . 2 . Utility 2 | . . . . . 2 . Weapon . | . . . . . . . Parts Attached 62 | 7 1 . 3 1 37 13 Power 8 | 1 1 . . . 4 2 Engine 6 | 1 1 . . . 3 1 Core 2 | . . . . . 1 1 Reactor . | . . . . . . . Propulsion 20 | 2 . . 2 . 12 4 Treads 2 | 2 . . . . . . Leg 3 | . . . . . 3 . Wheel 15 | . . . 2 . 9 4 Hover . | . . . . . . . Flight . | . . . . . . . Utility 17 | 2 . . 1 1 9 4 Device 6 | 1 . . . . 4 1 Storage 3 | 1 . . . 1 1 . Processor 2 | . . . 1 . . 1 Hackware 1 | . . . . . . 1 Protection 5 | . . . . . 4 1 Artifact . | . . . . . . . Weapon 17 | 2 . . . . 12 3 Energy Gun 8 | . . . . . 5 3 Energy Cannon 4 | . . . . . 4 . Ballistic Gun 3 | 2 . . . . 1 . Ballistic Cannon . | . . . . . . . Launcher . | . . . . . . . Special Weapon 1 | . . . . . 1 . Impact Weapon . | . . . . . . . Slashing Weapon . | . . . . . . . Piercing Weapon . | . . . . . . . Special Melee Weapon 1 | . . . . . 1 . Unidentified Prototypes 1 | . . . 1 . . . Corrupted Parts 2 | . . . . . . 2 System Corruption 5 | . . . . . . 5 Parts Lost 26 | . . . . . 17 9 Power 4 | . . . . . 3 1 Propulsion 8 | . . . . . 5 3 Utility 8 | . . . . . 5 3 Weapon 6 | . . . . . 4 2 Highest Loss Streak 5 | . . . . . 5 4 To Critical Strikes . | . . . . . . . Average Backups 7 | 2 7 8 8 7 6 7 Power . | . 1 1 1 1 . . Propulsion 1 | 1 4 4 4 2 . . Utility 2 | . . . . 2 3 4 Weapon 2 | . 1 3 2 2 2 1 Tool/Special . | . . . . . . . Unused Backups 5 | . . . 1 . . 4 Power . | . . . . . . . Propulsion . | . . . . . . . Utility 3 | . . . . . . 3 Weapon 2 | . . . 1 . . 1 Tool/Special . | . . . . . . . Average Slot Usage (%) 88 | . 100 100 100 100 79 95 Engine 8 | . 14 14 14 14 6 5 Core 1 | . . . . . . 3 Treads 6 | . 28 28 27 . . . Leg 3 | . . . . . 7 . Wheel 16 | . . . . 28 16 34 Device 7 | . 14 14 4 . 8 6 Storage 10 | . 14 14 14 14 9 5 Processor 3 | . . . 9 14 . 3 Hackware 1 | . . . . . . 8 Protection 8 | . . . . . 13 9 Energy Gun 4 | . . . . . 6 9 Energy Cannon 5 | . . . . . 8 5 Ballistic Gun 9 | . 28 28 28 28 1 . Peak Build Rating 28 | 7 7 7 12 13 25 28 Average Rating 15 | 6 7 7 10 12 17 23 On Entrance 10 | . 7 7 7 12 13 24 Avg Prop Armor Cover (%) 4 | . . . . . 4 . Naked Turns . | . . . . . . . Heaviest Build 43 | 13 13 13 13 17 43 43 Greatest Support 52 | 40 40 40 40 32 52 52 Greatest Overweight (x) 4 | . . . . . 4 1 Average Overweight (x) . | . . . . . 1 . Largest Inventory Capacity 10 | 8 8 8 8 10 10 10 Average Capacity 8 | 7 8 8 8 8 9 8 Most Carried 10 | 6 8 8 8 8 10 10 Average Carried 7 | 2 7 8 7 7 6 7 Final Capacity 10 | 8 8 8 8 10 10 5 Final Carried 10 | 6 8 8 6 8 10 5 Class Distribution -------------------- 50% | Mutant 49% | Scavenger-Mutant Dominant Class ---------------- Mutant | -10/Materials Mutant | -10/Mines Mutant | -10/Exiles Mutant | -9/Mines Scavenger-Mutant | -8/Materials Scavenger-Mutant | -8/Storage Resources | -11 -10 -10 -10 -9 -8 -8 ----------- Run | Yrd Mat Min Exi Min Mat Sto Matter Collected 1740 | 218 104 . . 66 1087 265 Remotely . | . . . . . . . Salvage Created 2044 | 46 143 . . . 1364 491 Parts 104 | 5 3 . . . 61 35 Haulers Intercepted 1 | . . . . . 1 . Recyclers Shooed 2 | . . . . . 1 1 Parts Field Recycled . | . . . . . . . Retrieved Matter . | . . . . . . . Parts Self-Destructed . | . . . . . . . Prevented . | . . . . . . . Parts Restored . | . . . . . . . Kills | -11 -10 -10 -10 -9 -8 -8 ------- Run | Yrd Mat Min Exi Min Mat Sto Combat Hostiles Destroyed 21 | . 3 . . . 11 7 Guns 15 | . 3 . . . 7 5 Cannons 6 | . . . . . 4 2 Classes Destroyed 9 | 1 1 . . . 7 . Worker 4 | . . . . . 2 2 Builder 3 | . . . . . 2 1 Tunneler 2 | 2 . . . . . . Hauler 1 | . . . . . 1 . Recycler 9 | . . . . . 8 1 Mechanic 2 | . . . . . 2 . Watcher 1 | . . . . . 1 . Grunt 14 | . 3 . . . 7 4 Sentry 7 | . . . . . 4 3 Best Kill Streak 4 | 2 3 . . . 4 3 Combat Bots Only 3 | . 3 . . . 2 2 Max Kills in Single Turn 1 | 1 1 . . . 1 1 Gunslinging . | . . . . . . . Exploded . | . . . . . . . Melee . | . . . . . . . Uniques/NPCs Destroyed . | . . . . . . . Combat | -11 -10 -10 -10 -9 -8 -8 -------- Run | Yrd Mat Min Exi Min Mat Sto Hostile Shots Fired 247 | . 14 . . 4 149 80 Missed 68 | . 5 . . 1 42 20 Hits 179 | . 9 . . 3 107 60 Projectile 179 | . 9 . . 3 107 60 Critical Strikes 11 | . . . . 1 4 6 Damage Taken 3118 | . 150 . . 25 2036 907 Core 570 | . 20 . . . 401 149 Absorbed by Shields 106 | . . . . . 71 35 Core Remaining (%) 96 | 100 . . . 92 . . Volleys Fired 198 | 12 9 . . . 131 46 Largest 2 | 2 2 . . . 2 2 Hottest 150 | 40 40 . . . 150 138 Shots Fired 321 | 24 18 . . . 222 57 Gun 203 | 24 18 . . . 125 36 Cannon 112 | . . . . . 91 21 Launcher . | . . . . . . . Special 6 | . . . . . 6 . Kinetic 100 | 24 18 . . . 58 . Thermal 119 | . . . . . 83 36 Explosive . | . . . . . . . Electromagnetic 102 | . . . . . 81 21 Robot Hit Streak 17 | 16 17 . . . 12 7 Robot Miss Streak 9 | 1 2 . . . 9 4 Penetration Max . | . . . . . . . Secondary Targets 1 | . . . . . 1 . Max Gunslinging Chain 1 | . . . . . 1 . Shots Hit Robots 200 | 20 11 . . . 129 40 Core Hits 75 | 5 8 . . . 45 17 Critical Kills 1 | . . . . . 1 . Critical Parts Destroyed . | . . . . . . . Critical Strikes 6 | . . . . . 3 3 Burn 2 | . . . . . . 2 Destroy 1 | . . . . . 1 . Corrupt 3 | . . . . . 2 1 Melee Attacks 5 | . . . . . . 5 Impact . | . . . . . . . Slashing . | . . . . . . . Piercing . | . . . . . . . Sneak Attacks 4 | . . . . . . 4 Combat Hostiles . | . . . . . . . Follow-up Attacks . | . . . . . . . Damage Inflicted 3736 | 156 172 . . . 2560 848 Guns 1581 | 156 85 . . . 909 431 Cannons 1810 | . . . . . 1422 388 Explosions 321 | . 87 . . . 205 29 Melee . | . . . . . . . Ramming . | . . . . . . . Kinetic 607 | 156 85 . . . 366 . Thermal 1300 | . . . . . 840 460 Explosive . | . . . . . . . Electromagnetic 1829 | . 87 . . . 1354 388 Impact . | . . . . . . . Slashing . | . . . . . . . Piercing . | . . . . . . . Highest Corruption 20 | . 1 1 1 1 14 20 Average Corruption 10 | . 1 1 1 1 14 17 Corruption Purged . | . . . . . . . Corruption Blocked . | . . . . . . . Effects 208 | . . . 7 2 153 46 Message Errors 54 | . . . 3 1 38 12 Matter Fused 47 | . . . 2 . 36 9 Heat Flow Errors 17 | . . . 1 . 13 3 Energy Discharges 21 | . . . . . 19 2 Parts Rejected 3 | . . . . . 3 . Parts Fused 1 | . . . . . 1 . Data Loss (minor) 33 | . . . 1 . 22 10 Data Loss (major) 6 | . . . . . 6 . Misfires 8 | . . . . . 6 2 Alerts 5 | . . . . 1 3 1 Misdirections 5 | . . . . . 1 4 Weapon Failures 8 | . . . . . 5 3 Overload Shots . | . . . . . . . Overflow Damage 88 | . . . . . 88 . Projectiles 57 | . . . . . 57 . Explosions 31 | . . . . . 31 . Melee . | . . . . . . . Knockbacks . | . . . . . . . Impact . | . . . . . . . Kinetic . | . . . . . . . Secondary . | . . . . . . . Self-Inflicted Damage 170 | . 36 . . . 114 20 Shots 5 | . 1 . . . 3 1 Rammed . | . . . . . . . Targets Rammed . | . . . . . . . Kicked . | . . . . . . . Crushed . | . . . . . . . Highest Temperature 675 | . 18 . 163 . 675 304 Average Temperature 125 | . 9 . 87 . 134 110 Received Heat Transfer 1412 | . 63 . . . 815 534 Effects 23 | . . . . . 22 1 Shutdowns 4 | . . . . . 4 . Energy Bleed 2 | . . . . . 2 . Interference 3 | . . . . . 2 1 Matter Decay 3 | . . . . . 3 . Short Circuit 5 | . . . . . 5 . Damage (minor) 2 | . . . . . 2 . Damage (major) 4 | . . . . . 4 . Siege Activations . | . . . . . . . Martial Activations . | . . . . . . . Shielding Activations . | . . . . . . . Robots Disrupted . | . . . . . . . Combat Hostiles . | . . . . . . . Robots Corrupted 1 | . . . . . 1 . Combat Hostiles . | . . . . . . . Parts Fried 5 | . . . . . 5 . Impact Corruptions . | . . . . . . . Robots Melted . | . . . . . . . Combat Hostiles . | . . . . . . . Parts Melted 1 | . . . . . 1 . Heat Transferred 2668 | . . . . . 1619 1049 Parts Sabotaged . | . . . . . . . Parts Stolen . | . . . . . . . Parts Stripped . | . . . . . . . Power Chain Reactions 3 | . . . . . 2 1 Alert | -11 -10 -10 -10 -9 -8 -8 ------- Run | Yrd Mat Min Exi Min Mat Sto Maximum Alert Level 1 | . . . . . 1 . Low Security (%) 98 | 100 100 100 . 100 97 100 Level 1 1 | . . . . . 2 . Level 2 . | . . . . . . . Level 3 . | . . . . . . . Level 4 . | . . . . . . . Level 5 . | . . . . . . . High Security . | . . . . . . . Max Security . | . . . . . . . Peak Influence 302 | 5 91 15 . . 302 127 Initial 127 | . . 15 . . . 127 Average 36 | . 25 5 . . 48 30 Influence Increases 1042 | 10 111 . . . 626 295 Destroy 0b10 Robot/C 420 | . 60 . . . 220 140 Destroy 0b10 Robot/NC 110 | 10 . . . . 80 20 Destroy Leader 124 | . 20 . . . 64 40 Successful Hack 14 | . . . . . 10 4 Disable Machine 120 | . 15 . . . 60 45 Destroy Structure 44 | . 1 . . . 42 1 Lose Combat Pursuer 210 | . 15 . . . 150 45 Influence Decreases 964 | 10 70 41 . . 324 519 Entered New Map 201 | . . 26 . . . 175 Time Decay 647 | 10 70 15 . . 270 282 Lost Part 116 | . . . . . 54 62 Squads Dispatched 8 | . 1 . . . 6 1 Investigation 2 | . . . . . 1 1 Extermination . | . . . . . . . Reinforcement 6 | . 1 . . . 5 . Assault . | . . . . . . . Garrison . | . . . . . . . Intercept . | . . . . . . . Searches Triggered . | . . . . . . . Construction Impeded 1 | . . . . . 1 . Haulers Reinforced . | . . . . . . . Active Scanning Responses . | . . . . . . . Cargo Convoy Interrupts . | . . . . . . . Stealth | -11 -10 -10 -10 -9 -8 -8 --------- Run | Yrd Mat Min Exi Min Mat Sto Distress Signals 8 | . 2 . . . 5 1 Communications Jammed . | . . . . . . . Distress Signals . | . . . . . . . Times Spotted 67 | . 8 . . 3 47 9 Peak Tracking Total 6 | . 4 . . 3 6 4 Tactical Retreats 8 | . 1 . . . 5 2 Traps | -11 -10 -10 -10 -9 -8 -8 ------- Run | Yrd Mat Min Exi Min Mat Sto Traps Triggered 2 | . . . . . . 2 Indirectly . | . . . . . . . Trap Hack Attempts 6 | . . . . . 1 5 Triggered . | . . . . . . . Disarmed 2 | . . . . . 1 1 Reprogrammed . | . . . . . . . Reused . | . . . . . . . Traps Extracted . | . . . . . . . Installed . | . . . . . . . Triggered . | . . . . . . . Machines | -11 -10 -10 -10 -9 -8 -8 ---------- Run | Yrd Mat Min Exi Min Mat Sto Machines Disabled 8 | . 1 . . . 4 3 Max in Single Turn 2 | . 1 . . . 2 1 Machines Repaired . | . . . . . . . Machines Dismantled . | . . . . . . . Machines Sabotaged . | . . . . . . . Overloaded Fab Kills . | . . . . . . . Hacking | -11 -10 -10 -10 -9 -8 -8 --------- Run | Yrd Mat Min Exi Min Mat Sto Machines Accessed 8 | . 1 . . . 5 2 Terminals 7 | . 1 . . . 4 2 Fabricators . | . . . . . . . Repair Stations . | . . . . . . . Recycling Units 1 | . . . . . 1 . Scanalyzers . | . . . . . . . Garrison Access . | . . . . . . . Total Hacks 14 | . 2 . . . 8 4 Successful 5 | . . . . . 4 1 Failed 9 | . 2 . . . 4 3 Catastrophic 2 | . . . . . 1 1 Database Lockouts . | . . . . . . . Manual 8 | . 2 . 1 . 5 . Terminals 13 | . 2 . . . 7 4 Fabricators . | . . . . . . . Repair Stations . | . . . . . . . Recycling Units 1 | . . . . . 1 . Scanalyzers . | . . . . . . . Garrison Access . | . . . . . . . Terminal Hacks 4 | . . . . . 3 1 Unreport Threat 1 | . . . . . 1 . Recall Reinforcements 1 | . . . . . 1 . Zone Layout 2 | . . . . . 1 1 Fabricator Hacks . | . . . . . . . Repair Station Hacks . | . . . . . . . Recycling Unit Hacks . | . . . . . . . Scanalyzer . | . . . . . . . Garrison Access Hacks . | . . . . . . . Unauthorized Hacks 1 | . . . . . 1 . Terminals 1 | . . . . . 1 . Track 1 | . . . . . 1 . Fabricators . | . . . . . . . Repair Stations . | . . . . . . . Recycling Units . | . . . . . . . Scanalyzers . | . . . . . . . Garrison Access . | . . . . . . . Data Cores Recovered . | . . . . . . . Used . | . . . . . . . Hacking Detections 5 | . . . . . 4 1 Full Trace Events 1 | . . . . . 1 . Feedback Events . | . . . . . . . Feedback Blocked . | . . . . . . . Robot Schematics Acquired . | . . . . . . . Robots Built . | . . . . . . . Authchips . | . . . . . . . Time . | . . . . . . . Total Robot Build Rating . | . . . . . . . Part Schematics Acquired . | . . . . . . . Parts Built . | . . . . . . . Authchips . | . . . . . . . Time . | . . . . . . . Total Part Build Rating . | . . . . . . . Part Studies Acquired . | . . . . . . . Parts Repaired . | . . . . . . . Time . | . . . . . . . Parts Recycled . | . . . . . . . Recycled Matter . | . . . . . . . Retrieved Matter . | . . . . . . . Retrieved Components . | . . . . . . . Parts Scanalyzed . | . . . . . . . Part Schematics Acquired . | . . . . . . . Parts Damaged . | . . . . . . . Bothacking | -11 -10 -10 -10 -9 -8 -8 ------------ Run | Yrd Mat Min Exi Min Mat Sto Used RIF Installer . | . . . . . . . Robots Hacked 2 | . . . . . . 2 Non-combat 2 | . . . . . . 2 Combat . | . . . . . . . Robot Hacks Applied 2 | . . . . . . 2 no_distress 2 | . . . . . . 2 Relay Couplers Released . | . . . . . . . Fabnet Peak Effective % . | . . . . . . . Robots Rewired . | . . . . . . . Allies Hacked . | . . . . . . . Hacks Repelled . | . . . . . . . Allies | -11 -10 -10 -10 -9 -8 -8 -------- Run | Yrd Mat Min Exi Min Mat Sto Total Allies . | . . . . . . . Largest Group . | . . . . . . . Highest-Rated Group . | . . . . . . . Highest-Rated Ally . | . . . . . . . Total Orders . | . . . . . . . Ally Attacks . | . . . . . . . Total Damage . | . . . . . . . Kills . | . . . . . . . Allies Corrupted . | . . . . . . . Allies Melted . | . . . . . . . Intel | -11 -10 -10 -10 -9 -8 -8 ------- Run | Yrd Mat Min Exi Min Mat Sto Active Infowar (turns) 2306 | 125 308 77 1046 564 186 . Seismic 1024 | 125 308 77 332 . 182 . T.N.C. 1464 | . . . 714 564 186 . Robot Analysis Total . | . . . . . . . Derelict Logs Recovered 1 | . . . . 1 . . Drone Launches . | . . . . . . . Drone Recoveries . | . . . . . . . Exploration | -11 -10 -10 -10 -9 -8 -8 ------------- Run | Yrd Mat Min Exi Min Mat Sto Turns Passed 6698 | 216 308 77 1046 564 3579 908 Spaces Moved 3301 | 107 150 49 650 473 1450 422 Core 8 | 2 . . . . 6 . Treads 946 | 105 150 49 642 . . . Legs 292 | . . . . . 292 . Wheels 2055 | . . . 8 473 1152 422 Hover . | . . . . . . . Flight . | . . . . . . . Fastest Speed 50 | 50 160 160 100 100 80 85 Average Speed 124 | 157 160 160 159 100 120 89 Slowest Speed 330 | 160 160 160 160 100 330 105 Overloaded Moves . | . . . . . . . Propulsion Burnouts . | . . . . . . . Robots Hopped . | . . . . . . . Potential Cave-ins 3 | . . . . . 3 . Cave-ins Triggered 1 | . . . . . 1 . Exploration Rate (%) 39 | 6 15 18 90 70 52 26 Regions Visited 6 Branch Regions 4 Pre-discovered Areas 1 | . . . . 1 . . Known Exits Taken . | . . . . . . . Unknown Exits Taken 6 | 1 1 1 1 1 1 . Scrap Searched 1 | . . . . 1 . . Spaces Dug 5 | . . . . . 5 . Terrain Destroyed 42 | . . . . . 42 . Melee . | . . . . . . . Projectile 6 | . . . . . 6 . AOE 36 | . . . . . 36 . Terrain Rammed . | . . . . . . . Walls Destroyed . | . . . . . . . Machines Disabled . | . . . . . . . Actions | -11 -10 -10 -10 -9 -8 -8 --------- Run | Yrd Mat Min Exi Min Mat Sto Total 5546 | 131 204 48 660 563 3048 892 Wait 1894 | . 42 . . 86 1382 384 Move 3295 | 106 149 48 649 472 1449 422 Hop . | . . . . . . . Pick Up 21 | 6 2 . 1 3 8 1 Fast Attach 45 | 7 . . . . 28 10 Attach 14 | . . . . . 11 3 Detach 10 | . . . . . 10 . Swap 27 | . 1 . 3 1 14 8 Drop 27 | . 1 . 3 1 14 8 Fire 198 | 12 9 . . . 131 46 Melee 5 | . . . . . . 5 Ram . | . . . . . . . Kick . | . . . . . . . Crush . | . . . . . . . Escape Stasis . | . . . . . . . Rewire 4 | . . . 4 . . . Trap 6 | . . . . . 1 5 Miscellaneous . | . . . . . . . Route ------- -11/Scrapyard -10/Materials -10/Mines -10/Exiles -9/Mines -8/Materials -8/Storage History --------- Turn | Location | Event 21 | -11/Scrapyard | Discovered new exit (range 15) 217 | -11/Scrapyard | Entered Materials 313 | -10/Materials | Build established: Mutant 481 | -10/Materials | Discovered new exit (range 15) 525 | -10/Materials | Entered Mines 591 | -10/Mines | Deemed a non-threat by the Exiles lab entrance 593 | -10/Mines | Discovered new exit (range 5) 602 | -10/Mines | Entered Exiles 658 | -10/Exiles | Met 8R-AWN 695 | -10/Exiles | Met EX-HEX 818 | -10/Exiles | Met EX-BIN 875 | -10/Exiles | Aligned with FarCom system 877 | -10/Exiles | Given EX-Vault access code 925 | -10/Exiles | Opened EX-Vault 933 | -10/Exiles | Found Prototype Processor 934 | -10/Exiles | Identified Modified TNC 1000 | -10/Exiles | Warned to stay clear of 0b10 Research branches 1075 | -10/Exiles | Met EX-DEC 1166 | -10/Exiles | Visited The Gauntlet 1493 | -10/Exiles | Discovered new exit (range 14) 1648 | -10/Exiles | Left Exiles lab with Modified TNC 1648 | -10/Exiles | Entered Mines 1763 | -9/Mines | Learned location of Zion (-7) 2109 | -9/Mines | Discovered new exit (range 15) 2212 | -9/Mines | Entered Materials 2212 | -8/Materials | Evolved 4 slots: Propulsion x2, Utility x2 2398 | -8/Materials | Crushed by falling debris 2398 | -8/Materials | System corruption reached 10% 2434 | -8/Materials | Lost 5 parts (1p1n2u1w) 2763 | -8/Materials | Lost 3 parts (1n1u1w) 3157 | -8/Materials | Lost 3 parts (1p1n1u) 3191 | -8/Materials | Core integrity fell below 50% 3213 | -8/Materials | Lost 4 parts (1p1n1u1w) 3829 | -8/Materials | Build established: Scavenger-Mutant 5773 | -8/Materials | Discovered new exit (range 4) 5791 | -8/Materials | Entered Storage 6051 | -8/Storage | Lost 3 parts (2n1w) 6243 | -8/Storage | Core integrity fell below 20% 6325 | -8/Storage | Lost 4 parts (1p1n2u) 6699 | -8/Storage | Destroyed by G-47 Trooper with Particle Gun Last Messages --------------- investigation squad. 06637_ Imp. Shield Generator destroyed. 06638_ Critical hit (Burn: +37). 06640_ U-05 Engineer lays Concrete. 06653_ Q8>27DU7K6 1TPBAI%8%YB 06669_ System corrupted: Matter fused (-8). 06676_ Y-45 Defender destroyed. 06680_ Acquired 27 matter. 06683_ Dropped Lgt. Nuclear Core. 06683_ Acquired Imp. Ion Engine. 06685_ Dropped Pulse Rifle. 06686_ System corrupted: Component data lost. 06686_ Acquired Beam Rifle. 06688_ Y-45 Defender suffers critical hit (Burn). 06688_ Y-45 Defender destroyed. 06691_ Acquired 20 matter. 06695_ Acquired Heat Sink. 06697_ Acquired 10 matter. 06699_ Critical hit (Burn: +37). Map ----- +----------------------------------------------------+ | ??????????????????# #[*="[%" #??????# #???? | | ??????????????????# # !"""" #??????# #???? | | ??????????????????# # % !!!= #??????# #???? | | ??????????????????# ##+###########??# #???? | | ??????????????????######+##%# #??# #???? | | ??????????????########## # #??# #???? | | ??????????????# ## #????????????? ????? | | ??????????????# " "## #????????????????????? | | ??????????????# !%*"%# #####+####???????????? | | ??????????????#= == "+ ?????????? | | ??????????????# %!% # ?????????? | | ??###?????????####### # ###### w ?????????? | | ??# ############### ###????######??????????? | | ??# #????????????????????? | | ??# #????????????????????? | | ??# #????????????????????? | | ???? ##############+######????????????????????? | | ??????????????????# #?????????????????????? | | ??????????????????# """" #?????????????????????? | | ??????????????????# [!" #?????????????????????? | | ??????????????????# !"]!" #?????????????????????? | | ??????????????????# "%!" #?????????????????????? | | ??????????????????# "! " #?????????????????????? | | ??????????????????# g"""" #?????????????????????? | | ??????????????????# g[ %=#?????????????????????? | | ??????????????????# *[= @ #?????????????????????? | | ??????????????????##########?????????????????????? | | ?????????????????????????????????????????????????? | | ?????????????????????????????????????????????????? | | ?????????????????????????????????????????????????? | | ?????????????????????????????????????????????????? | | ?????????????????????????????????????????????????? | | ?????????????????????????????????????????????????? | | ?????????????????????????????????????????????????? | | ?????????????????????????????????????????????????? | | ?????????????????????????????????????????????????? | | ?????????????????????????????????????????????????? | | ?????????????????????????????????????????????????? | | ????????????????????????????????????Y????????????? | | ?????????????????????????????????????????????????? | | ?????????????????????????????????????????????????? | | ?????????????????????????????????????????????????? | | ?????????????????????????????????????????????????? | | ?????????????????????????????????????????????????? | | ?????????????????????????????????????????????????? | | ?????????????????????????????????????????????????? | | ?????????????????????????????????????????????????? | | ?????????????????????????????????????????????????? | | ?????????????????????????????????????????????????? | | ?????????????????????????????????????????????????? | +----------------------------------------------------+ Best States ------------- Heat Dissipation 45 Energy Generation 14 Energy Capacity 265 Matter Stores 450 Matter Capacity 450 Sight Range 16 Terrain Scan Density 10 Armor Coverage 450 Evasion (%) 55 Targeting Accuracy 8 Recoil Reduction 2 Particle Charging 15 Offensive Hacking 10 Item Schematics ----------------- None Robot Schematics ------------------ None Fabricated ------------ Nothing Repaired ---------- Nothing Studied --------- None Alien Tech Used ----------------- None Achievements -------------- GoHome() Heavy Suspicion Not Today, Chutes Well Done Challenges ------------ None Game ------ Seed PiercelightDerelictDirector Manual? 0 Play Time 01:04:18 Cumulative 12.0 hours Start 2026.01.03 @ 04:36:10 End 2026.01.03 @ 05:40:38 Sessions 1 Manual Loads 0 Difficulty Rogue Special Mode None Game No. 14 Rogue 14 Adventurer 0 Explorer 0 Win Type - Total 0 Types 0/0/0/0/0/0/0/0/0/0 Lore% 16 Gallery% 12 Achievement% 14 Wizard Run 0 Options --------- Layout 1 ASCII 0 Keyboard 0 Movement Arrows Keybinds 0 Fullscreen 2 Font 24/Crisp Map View 50x35 Zoom Use 0% Tactical HUD 1 Map Filters NONE Filters NONE Steam 1 RUN: 3fa4f4f5-7046-4604-b832-ed3fa6d3cebc